bitfinex/quotes_ETHUSD_20230405
["timestamp","ask_amount","ask_price","bid_price","bid_amount"]
[1680701560232,0.34091813,1912.2,1911.8,2.43276908]
[1680701560445,0.34091813,1912.2,1911.9,0.24327691]
[1680701560649,0.34091813,1912.2,1911.9,2.44257691]
[1680701561026,0.189,1912.6,1912.0,0.0217668]
[1680701561366,2.82328255,1912.6,1912.0,0.0400668]
[1680701561526,0.006,1912.6,1912.0,2.47116217]
[1680701561728,0.183,1912.6,1912.0,2.2210668]
[1680701562063,0.342277,1912.5,1912.0,2.2576768]
[1680701562244,0.342277,1912.5,1912.1,2.40310668]
[1680701562473,0.342277,1912.5,1912.1,2.42140668]
[1680701562673,0.342277,1912.5,1912.1,0.24040668]
[1680701562847,0.342277,1912.5,1912.4,2.2359]
[1680701563047,0.342277,1912.5,1912.4,2.3091]
[1680701563251,0.342277,1912.5,1912.4,2.181]
[1680701563452,0.342277,1912.5,1912.4,2.2176]
[1680701563748,0.342277,1912.5,1912.4,2.45766]
[1680701563952,0.006,1913.3,1912.4,10.64414255]
[1680701564288,2.64028255,1913.3,1912.7,2.181]
[1680701564493,2.82321255,1913.3,1912.8,0.2181]
[1680701564849,2.82321255,1913.3,1912.6,2.18929]
[1680701565160,0.33141596,1913.2,1912.6,2.22588]
[1680701565378,0.33741596,1913.2,1912.6,2.22588]
[1680701565775,2.97169851,1913.2,1912.6,2.22588]
[1680701566073,2.63428255,1913.1,1912.6,0.12807]
[1680701566388,0.33741596,1913.2,1912.7,2.25763885]
[1680701566572,0.33141596,1913.2,1912.7,2.25763885]
[1680701566759,0.33141596,1913.2,1912.8,0.22576389]
[1680701566963,0.33141596,1913.2,1912.9,0.02175657]
[1680701567165,0.33141596,1913.2,1913.1,7.66]
[1680701567486,0.33141596,1913.2,1913.1,10.42832255]
[1680701567487,0.00041596,1913.2,1913.1,10.42832255]
[1680701567796,0.00041596,1913.2,1913.1,14.4889091]
[1680701568087,0.18286,1914.0,1913.1,14.4889091]
[1680701568290,0.18286,1914.1,1913.3,2.181]
[1680701568491,15.451,1914.2,1913.4,0.02175089]
[1680701568798,2.63428255,1914.1,1913.4,2.47972498]
[1680701568960,0.30008919,1914.0,1913.4,2.47972498]
[1680701570887,2.411,1912.9,1912.2,0.21]
[1680701571081,2.59997,1912.9,1912.2,0.21]
[1680701571294,2.83901346,1912.8,1912.2,0.21]
[1680701571598,3.23,1912.7,1912.1,0.0183]
[1680701571754,2.63428255,1912.6,1912.0,0.0183]
[1680701571960,0.02175091,1912.5,1911.9,0.0183]
[1680701572160,2.66203346,1912.5,1911.9,0.0183]
[1680701572354,2.63428255,1912.4,1911.9,0.05491]
[1680701572659,2.64028255,1912.4,1911.9,0.05491]
[1680701572908,3.5266259,1912.4,1911.7,0.03661]
[1680701573201,0.02175091,1912.3,1911.7,0.0183]
[1680701573369,2.63428255,1912.2,1911.7,0.0183]
[1680701573572,2.64028255,1912.2,1911.7,0.0183]
[1680701575592,2.64028255,1912.2,1911.6,0.05491]
[1680701575793,0.23,1912.1,1911.5,2.181]
[1680701575983,0.23,1912.1,1911.6,0.225423]
[1680701575984,2.63428255,1912.0,1911.6,0.225423]
[1680701576904,0.52615929,1912.1,1911.6,0.243723]
[1680701577106,0.02775091,1912.3,1911.6,2.406423]
[1680701577275,0.02775091,1912.3,1911.6,2.181]
[1680701577276,2.66203346,1912.3,1911.6,2.181]
[1680701577685,2.84506346,1912.3,1911.6,2.181]
[1680701577976,2.63428255,1912.2,1911.7,0.2181]
[1680701578361,3.18939255,1912.2,1911.7,0.2181]
[1680701578604,3.18939255,1912.2,1911.5,2.183]
[1680701578908,3.18939255,1912.2,1911.4,2.281]
[1680701578909,0.23,1912.1,1911.4,2.281]
[1680701579211,0.18904,1912.2,1911.5,2.171]
[1680701579404,2.81732255,1912.2,1911.6,0.2171]
[1680701579708,2.64028255,1912.2,1911.6,0.2171]
[1680701579877,2.82332255,1912.2,1911.6,0.2171]
[1680701580205,3.0,1912.1,1911.6,0.2171]
[1680701580364,0.18305,1912.0,1911.4,2.281]
[1680701580703,2.64028255,1912.0,1911.4,2.281]
[1680701580862,2.64028255,1912.0,1911.5,2.181]
[1680701580863,0.006,1912.0,1911.5,2.181]
[1680701581066,0.18304,1912.1,1911.6,0.2181]
[1680701581369,0.18304,1912.1,1911.4,2.271]
[1680701581900,0.54912,1912.1,1911.4,7.75]
[1680701582059,0.54912,1912.1,1911.4,7.752]
[1680701582259,0.57087091,1912.1,1911.4,7.752]
[1680701582514,0.20479091,1912.1,1911.5,0.7752]
[1680701582671,0.54913,1912.1,1911.5,2.9562]
[1680701583006,0.54913,1912.1,1911.4,2.281]
[1680701583210,0.54913,1912.1,1911.6,2.181]
[1680701583514,0.73814,1912.2,1911.7,5.479]
[1680701583515,0.006,1912.2,1911.7,5.479]
[1680701583743,0.002,1912.5,1912.1,7.66]
[1680701584016,0.008,1913.0,1912.4,2.181]
[1680701584207,0.3719,1913.1,1912.4,2.181]
[1680701584368,0.006,1913.1,1912.4,2.181]
[1680701584703,0.36592,1913.0,1912.5,0.2181]
[1680701584904,0.36592,1913.0,1912.3,2.187]
[1680701585108,0.02175091,1913.1,1912.3,2.187]
[1680701585406,0.38765091,1913.1,1912.3,2.187]
[1680701585606,0.18296,1912.9,1912.4,0.2187]
[1680701585762,0.18296,1913.0,1912.4,0.2187]
[1680701585967,0.18298,1912.8,1912.4,0.2187]
[1680701586310,0.02175091,1913.1,1912.4,0.2187]
[1680701586609,0.02175091,1913.1,1912.4,0.237]
[1680701586610,0.20470091,1913.1,1912.4,0.237]
[1680701586809,0.02175091,1913.1,1912.4,0.237]
[1680701587110,0.002,1913.2,1912.7,2.171]
[1680701587436,0.18294,1913.2,1912.8,0.2171]
[1680701587566,6.1618,1913.3,1912.8,0.2171]
[1680701587567,0.18295,1913.1,1912.8,0.2171]
[1680701587912,0.18296,1912.9,1912.6,3.183]
[1680701588116,0.18296,1912.9,1912.5,0.006]
[1680701588117,0.18295,1913.1,1912.7,0.3183]
[1680701588322,0.18295,1913.1,1912.4,0.006]
[1680701588323,3.36608255,1913.1,1912.4,0.006]
[1680701588478,0.36596,1912.8,1912.4,0.2189]
[1680701588820,0.183,1912.5,1912.3,0.006]
[1680701589020,0.54896,1912.7,1912.2,0.006]
[1680701589317,3.36622255,1912.8,1912.3,2.181]
[1680701589318,0.36596,1912.8,1912.3,2.181]
[1680701589620,0.002,1912.9,1912.3,2.181]
[1680701589621,0.183,1912.6,1912.3,2.181]
[1680701589778,0.18301,1912.5,1912.3,2.181]
[1680701589985,0.183,1912.6,1912.4,0.2181]
[1680701590487,0.18299,1912.7,1912.4,0.2181]
[1680701590687,0.183,1912.5,1912.4,0.2181]
[1680701590990,2.63428255,1912.8,1912.4,0.2181]
[1680701590991,0.36599,1912.6,1912.4,0.2181]
[1680701591318,0.183,1912.5,1912.2,2.187]
[1680701591478,0.183,1912.6,1912.2,2.181]
[1680701591677,6.61470091,1912.8,1912.3,0.2187]
[1680701591983,0.18299,1912.6,1912.3,0.2187]
[1680701592317,0.183,1912.5,1912.3,0.2187]
[1680701592612,0.183,1912.6,1912.3,0.2187]
[1680701593004,6.43173091,1912.8,1912.3,0.2187]
[1680701593314,6.24875091,1912.8,1912.3,0.2187]
[1680701593485,0.002,1912.8,1912.4,2.181]
[1680701593688,5.92045,1913.1,1912.6,2.181]
[1680701594019,2.63428255,1913.0,1912.5,0.2364]
[1680701594190,2.81724255,1913.0,1912.4,2.1993]
[1680701594915,0.18296,1912.9,1912.3,2.4606]
[1680701595223,0.18301,1912.5,1912.2,0.006]
[1680701595379,0.18302,1912.3,1912.1,0.006]
[1680701595724,0.54907,1912.3,1912.0,0.006]
[1680701595887,0.18302,1912.4,1912.0,0.006]
[1680701596090,2.81730255,1912.3,1912.0,0.006]
[1680701596331,3.91545255,1912.3,1911.9,0.006]
[1680701596485,4.1971828,1912.3,1911.6,1.006]
[1680701597179,4.1971828,1912.3,1911.7,2.181]
[1680701597180,3.18335255,1912.3,1911.7,2.181]
[1680701597410,2.81730255,1912.3,1911.7,2.1993]
[1680701597619,0.18302,1912.3,1911.7,2.1993]
[1680701597824,0.36603,1912.4,1911.8,0.21993]
[1680701597980,0.18302,1912.4,1911.8,2.41923]
[1680701598181,0.36601,1912.5,1911.9,0.241923]
[1680701598487,2.81729255,1912.5,1911.9,1.260223]
[1680701598692,0.185,1912.6,1912.0,2.181]
[1680701598889,0.183,1912.6,1912.0,2.3253223]
[1680701599114,6.2662,1912.7,1912.1,2.181]
[1680701599286,6.2662,1912.7,1912.2,3.181]
[1680701599481,6.2662,1912.7,1912.2,3.187]
[1680701599792,6.44918,1912.7,1912.2,3.187]
[1680701600014,6.2662,1912.7,1912.3,0.337]
[1680701600187,0.002,1912.7,1912.5,0.937]
[1680701600381,0.006,1912.8,1912.5,0.937]
[1680701600382,6.1859,1913.3,1912.7,5.479]
[1680701600586,0.008,1913.3,1913.0,2.181]
[1680701600780,0.340919,1913.5,1912.9,2.181]
[1680701601018,0.18294,1913.2,1913.0,1.1201]
[1680701601176,0.36586,1913.3,1913.0,0.902]
[1680701601382,0.18293,1913.3,1913.0,0.902]
[1680701601591,0.20467091,1913.4,1913.0,0.902]
[1680701601821,0.18293,1913.3,1913.0,0.902]
[1680701602028,0.47178652,1913.2,1913.0,0.902]
[1680701602318,0.28884652,1913.2,1913.0,0.902]
[1680701602475,0.47178652,1913.2,1913.0,0.902]
[1680701603124,0.18294,1913.1,1913.0,0.902]
[1680701603280,3.2668792,1913.1,1912.6,0.008]
[1680701603476,2.81724255,1913.0,1912.4,1.006]
[1680701603691,0.18299,1912.6,1912.4,0.13633]
[1680701603923,0.36597,1912.7,1912.2,1.006]
[1680701604083,0.18298,1912.8,1912.3,0.1006]
[1680701604282,0.18299,1912.7,1912.3,0.1006]
[1680701604480,0.18299,1912.7,1912.3,2.2816]
[1680701604684,0.18298,1912.8,1912.4,0.22816]
[1680701605001,0.5489,1912.9,1912.4,0.22816]
[1680701605198,2.81724255,1913.0,1912.4,1.24646]
[1680701605533,0.18296,1912.9,1912.5,0.124646]
[1680701606012,0.18297,1912.8,1912.5,0.124646]
[1680701606327,0.18297,1912.9,1912.5,0.124646]
[1680701606507,2.81724255,1913.0,1912.4,1.24646]
[1680701606722,0.18296,1913.0,1912.4,3.42746]
[1680701607026,3.02175091,1913.1,1912.4,3.40916]
[1680701607186,0.18296,1913.0,1912.5,0.342746]
[1680701607586,6.20687346,1913.1,1912.5,0.361046]
[1680701607809,2.84098346,1913.1,1912.5,0.361046]
[1680701607998,2.83898346,1913.1,1912.5,0.361046]
[1680701608221,2.65603346,1913.1,1912.5,0.342746]
[1680701608535,14.4834,1913.2,1912.7,2.181]
[1680701608536,0.008,1913.2,1912.7,2.181]
[1680701608719,6.1271,1913.3,1913.1,0.00390713]
[1680701608913,0.5488,1913.2,1913.1,0.00390713]
[1680701609615,0.18293,1913.2,1913.1,0.00390713]
[1680701610529,6.66989,1913.3,1913.1,0.00390713]
[1680701610704,0.18293,1913.2,1913.1,0.00390713]
[1680701610900,6.1271,1913.3,1913.1,0.00390713]
[1680701611211,0.18493,1913.3,1913.1,0.00390713]
[1680701611438,0.18293,1913.2,1913.1,0.00390713]
[1680701612213,0.36585,1913.4,1913.1,0.00390713]
[1680701612436,0.18293,1913.2,1913.1,0.00390713]
[1680701613636,0.18293,1913.2,1913.1,0.00152376]
[1680701613947,3.18308255,1913.2,1913.1,0.00152376]
[1680701614344,3.41308255,1913.2,1913.1,0.00152376]
[1680701614658,3.43483346,1913.2,1913.1,0.00152376]
[1680701614856,6.85229081,1913.2,1913.1,0.00152376]
[1680701615072,6.85429081,1913.2,1913.1,0.00152376]
[1680701615222,9.04129081,1913.2,1913.1,0.00152376]
[1680701615836,18.20656188,1913.2,1913.1,0.00152376]
[1680701616579,8.62,1913.0,1912.2,0.006]
[1680701616757,0.36599,1912.6,1912.2,0.006]
[1680701616973,8.141,1912.2,1911.1,1.6407427]
[1680701617265,8.141,1912.2,1910.4,0.1]
[1680701617266,5.479,1911.1,1910.1,0.1]
[1680701617434,5.0,1910.6,1909.9,0.1099914]
[1680701617642,9.16967,1910.2,1909.8,0.102]
[1680701617842,9.16967,1910.2,1909.8,0.1]
[1680701617843,0.18324,1910.0,1909.8,0.1]
[1680701618040,0.18924,1910.0,1909.8,0.1]
[1680701618235,0.006,1910.0,1909.8,4.64002456]
[1680701618522,0.006,1910.0,1909.9,0.46400246]
[1680701618888,0.02175091,1910.2,1909.8,0.1]
[1680701619295,5.02175091,1910.2,1909.8,0.1]
[1680701619505,2.35625,1909.9,1909.8,0.1]
[1680701619670,2.37800091,1909.9,1909.8,0.1]
[1680701619871,4.15963738,1909.9,1909.8,0.1]
[1680701620085,0.18325,1909.9,1909.8,0.1]
[1680701620320,2.61600091,1909.9,1909.7,0.1]
[1680701620531,1.98990602,1909.7,1909.6,0.1]
[1680701620817,10.44780602,1909.7,1909.6,0.1]
[1680701621026,17.44086894,1909.7,1909.6,0.1]
[1680701621324,2.165,1909.6,1908.4,0.002]
[1680701621520,2.165,1909.6,1908.2,0.1002]
[1680701621521,2.175,1908.5,1908.2,0.1002]
[1680701621687,2.34839,1908.4,1908.1,0.006]
[1680701622023,0.18538,1908.6,1908.1,0.006]
[1680701622176,2.4082648,1909.1,1907.9,0.006]
[1680701622177,3.144,1909.0,1907.9,0.006]
[1680701622379,3.32734,1909.0,1907.9,0.006]
[1680701622677,7.17,1908.8,1907.8,0.15634386]
[1680701622907,0.23,1908.7,1907.8,0.11034386]
[1680701623229,0.00547259,1908.7,1907.8,0.10634386]
[1680701623375,0.00547259,1908.9,1907.9,2.2]
[1680701623576,0.00547259,1908.9,1908.0,0.22]
[1680701623993,0.00547259,1909.0,1908.0,3.42]
[1680701624223,0.02175091,1908.8,1908.1,0.342]
[1680701624384,0.02175091,1908.8,1907.8,0.62209079]
[1680701624588,0.02175091,1908.8,1907.9,0.01834]
[1680701625190,4.006,1908.7,1907.8,0.57209079]
[1680701625389,1.83335,1909.1,1908.0,11.59]
[1680701625638,3.66594,1909.5,1908.8,3.9021496]
[1680701625639,0.002,1909.5,1908.8,3.9021496]
[1680701625794,3.5,1911.2,1908.8,3.9021496]
[1680701625795,0.004,1910.5,1908.8,3.9021496]
[1680701626136,0.008,1910.6,1909.3,2.3]
[1680701626341,0.008,1910.6,1910.2,4.011]
[1680701626342,0.006,1910.6,1910.2,4.011]
[1680701626558,0.002,1911.0,1910.4,4.026]
[1680701626559,0.006,1911.0,1910.4,4.026]
[1680701626720,0.37416,1911.7,1910.3,0.008]
[1680701626927,1.94353294,1911.1,1910.1,0.006]
[1680701627128,5.96953294,1911.1,1909.9,2.4]
[1680701627324,0.008,1911.1,1910.0,0.24]
[1680701627531,7.86,1911.7,1910.0,0.24]
[1680701627532,0.008,1911.5,1910.0,3.24]
[1680701627810,3.08263786,1911.7,1910.0,3.24]
[1680701627811,3.08263786,1911.7,1910.4,4.026]
[1680701628038,0.008,1911.8,1910.4,4.026]
[1680701628353,1.36360237,1911.9,1911.2,0.01831]
[1680701628354,2.98138836,1911.7,1911.2,0.01831]
[1680701628509,2.98138836,1911.7,1911.3,0.02172507]
[1680701628709,2.98138836,1911.7,1911.4,4.026]
[1680701628914,1.37160237,1911.9,1911.5,1.0183]
[1680701629140,1.37160237,1911.9,1911.5,1.0]
[1680701629141,1.36360237,1911.9,1911.5,1.0]
[1680701629347,1.36360237,1911.9,1911.6,0.1]
[1680701629856,1.36360237,1911.9,1911.4,0.008]
[1680701630053,1.36360237,1911.9,1911.4,0.01831]
[1680701630263,1.36360237,1911.9,1911.3,8.479]
[1680701630408,1.36360237,1911.9,1911.4,0.8479]
[1680701630609,1.36360237,1911.9,1911.6,0.0183]
[1680701630813,1.36360237,1911.9,1911.6,1.0183]
[1680701631517,1.31360237,1911.9,1911.6,1.0183]
[1680701631721,1.31360237,1911.9,1911.6,4.0183]
[1680701631922,1.31360237,1911.9,1911.8,0.0183]
[1680701632332,1.31360237,1911.9,1911.6,3.92013]
[1680701632507,1.31360237,1911.9,1911.8,0.0183]
[1680701632908,1.31360237,1911.9,1911.6,8.91743]
[1680701633148,1.31360237,1911.9,1911.7,0.41373353]
[1680701633417,1.31360237,1911.9,1909.9,0.03664]
[1680701633418,4.23316384,1911.6,1909.9,0.03664]
[1680701633651,5.479,1911.4,1908.5,2.2]
[1680701633825,5.479,1911.4,1908.6,0.1311072]
[1680701633826,5.479,1910.7,1908.6,0.1311072]
[1680701634092,5.487,1910.7,1909.0,0.03666]
[1680701634283,3.0,1910.6,1909.3,0.01833]
[1680701634469,0.006,1910.6,1909.5,0.01832]
[1680701634669,5.0,1910.6,1909.5,5.479]
[1680701634910,5.0,1910.4,1909.5,0.002]
[1680701635109,3.02172053,1910.3,1909.3,0.11833]
[1680701635311,3.02772053,1910.3,1909.3,0.1]
[1680701635616,0.02772053,1910.3,1909.3,0.5331]
[1680701635790,5.02772053,1910.3,1909.3,0.5331]
[1680701635990,0.008,1910.3,1909.8,4.026]
[1680701636190,0.006,1910.4,1909.8,4.026]
[1680701636403,0.006,1910.4,1909.7,0.002]
[1680701636610,3.236,1910.4,1909.3,4.126]
[1680701636791,3.006,1910.4,1909.3,9.605]
[1680701637122,3.1892,1910.4,1909.4,0.9605]
[1680701637613,3.006,1910.4,1909.4,0.9605]
[1680701638054,3.18921,1910.4,1909.4,0.9605]
[1680701638417,3.18921,1910.4,1909.3,0.1]
[1680701641358,0.006,1910.4,1909.3,0.1]
[1680701641551,0.006,1910.8,1909.7,5.479]
[1680701641752,0.18916,1910.8,1909.8,6.0269]
[1680701642053,0.18916,1910.8,1909.8,6.0289]
[1680701642054,0.006,1910.8,1909.8,6.0289]
[1680701642252,0.006,1910.8,1909.9,0.60289]
[1680701642416,0.006,1910.8,1909.8,5.481]
[1680701642417,0.20489053,1910.7,1909.8,0.002]
[1680701642610,0.21089053,1910.7,1909.6,5.481]
[1680701643051,0.21089053,1910.7,1909.7,0.5481]
[1680701643236,0.02772053,1910.7,1909.6,2.2]
[1680701643436,0.02172053,1910.7,1909.8,0.03665]
[1680701643739,0.006,1910.9,1910.2,0.01832]
[1680701643967,3.08263786,1911.5,1910.5,0.019]
[1680701643968,0.006,1911.1,1910.5,0.019]
[1680701644126,0.006,1911.2,1910.5,0.019]
[1680701644330,1.70198878,1911.9,1910.5,0.019]
[1680701644331,0.006,1911.5,1910.5,0.019]
[1680701644536,0.006,1911.5,1910.5,0.03731]
[1680701644720,0.006,1911.5,1910.5,5.498]
[1680701644941,0.006,1911.5,1910.5,5.51831]
[1680701645247,0.18911,1911.5,1910.5,5.5]
[1680701645463,0.006,1911.5,1910.5,5.5]
[1680701645619,0.006,1911.5,1910.8,6.479]
[1680701645819,0.006,1911.5,1910.8,6.481]
[1680701646863,0.006,1911.5,1911.0,0.019]
[1680701647162,4.92284677,1912.2,1911.2,0.01831]
[1680701647163,0.006,1911.7,1911.2,0.01831]
[1680701647317,0.006,1911.9,1911.0,0.019]
[1680701647721,0.006,1911.9,1911.3,0.01831]
[1680701647918,0.006,1912.0,1911.3,0.01831]
[1680701648163,0.02772053,1912.0,1911.0,0.019]
[1680701648344,0.21078053,1912.0,1910.9,5.49931]
[1680701648552,0.02772053,1912.0,1911.0,0.5479]
[1680701648718,0.18306,1911.9,1911.0,6.0269]
[1680701649055,0.02172053,1911.8,1911.1,0.60269]
[1680701649257,0.18308,1911.7,1910.8,5.479]
[1680701649418,0.18308,1911.7,1910.8,5.481]
[1680701649419,0.18908,1911.7,1910.8,5.481]
[1680701649619,0.006,1911.7,1910.9,0.5481]
[1680701649819,0.37216,1911.7,1910.9,0.5481]
[1680701650115,0.21868411,1911.6,1910.9,0.5481]
[1680701650355,0.40177411,1911.6,1910.9,0.5481]
[1680701650658,0.22468411,1911.6,1911.0,0.05481]
[1680701650860,0.42949464,1911.6,1910.8,0.002]
[1680701651154,0.42949464,1911.6,1910.7,0.01831]
[1680701651360,0.24640464,1911.6,1910.7,0.07331]
[1680701651544,0.24640464,1911.6,1910.8,0.01831]
[1680701651745,0.24640464,1911.6,1910.7,0.055]
[1680701651961,0.42949464,1911.6,1910.7,0.07331]
[1680701652119,0.42949464,1911.6,1910.7,0.055]
[1680701652319,0.42949464,1911.6,1910.4,5.481]
[1680701652320,0.42949464,1911.6,1910.4,0.002]
[1680701652523,0.42949464,1911.6,1910.4,0.03664]
[1680701652774,0.42949464,1911.6,1910.6,0.01831]
[1680701652921,0.51421242,1911.6,1910.4,0.01832]
[1680701653117,0.51421242,1911.6,1910.5,0.01831]
[1680701653118,9.13721242,1911.6,1910.5,0.01831]
[1680701653335,0.18311,1911.4,1910.5,0.01831]
[1680701653531,0.18911,1911.4,1910.5,0.01831]
[1680701653732,0.18911,1911.4,1910.4,0.01831]
[1680701653980,0.18911,1911.4,1910.4,0.571905]
[1680701654338,0.18911,1911.4,1910.5,0.01831]
[1680701654565,0.18911,1911.4,1910.6,0.01831]
[1680701654767,0.006,1911.4,1910.7,0.01831]
[1680701654971,0.006,1911.4,1910.6,0.01831]
[1680701654972,0.18911,1911.4,1910.6,0.01831]
[1680701655167,0.18311,1911.4,1910.5,0.006]
[1680701655460,8.74131201,1911.7,1910.5,0.006]
[1680701655461,3.18508,1911.7,1910.5,0.04263]
[1680701655664,3.54924,1911.7,1910.5,0.04263]
[1680701655959,3.54924,1911.7,1910.6,0.01831]
[1680701656161,3.49924,1911.7,1910.7,0.01831]
[1680701656585,3.49924,1911.7,1910.6,0.006]
[1680701657072,3.49924,1911.7,1910.8,0.01831]
[1680701657227,0.02172053,1911.6,1910.6,0.02431]
[1680701657427,0.20481053,1911.6,1910.7,0.01831]
[1680701658120,0.57099053,1911.6,1910.7,0.01831]
[1680701658321,0.57099053,1911.6,1910.8,0.01831]
[1680701658527,2.83909308,1911.6,1910.6,0.006]
[1680701658725,3.1831,1911.5,1910.8,0.01831]
[1680701659026,3.1831,1911.5,1910.8,0.02431]
[1680701659469,9.17245,1911.0,1910.8,0.006]
[1680701659627,3.91637255,1910.9,1910.3,0.006]
[1680701659830,3.91637255,1910.9,1910.1,0.006]
[1680701659831,3.0,1910.8,1910.1,0.006]
[1680701660140,0.02172053,1910.7,1910.3,0.01832]
[1680701660344,0.73255,1911.2,1910.3,2.63428255]
[1680701660345,3.0,1911.2,1910.3,2.63428255]
[1680701660645,3.0,1911.2,1910.5,6.49731]
[1680701660646,0.18313,1911.2,1910.5,6.49731]
[1680701660951,0.18313,1911.2,1910.5,9.13959255]
[1680701661129,0.18313,1911.2,1910.5,9.12128255]
[1680701661334,1.28191,1911.2,1910.6,0.91212826]
[1680701661550,1.30363053,1911.2,1910.6,0.006]
[1680701661760,0.20485053,1911.2,1910.6,0.006]
[1680701662068,0.20485053,1911.2,1910.5,0.01831]
[1680701662276,0.20485053,1911.2,1910.4,0.006]
[1680701662570,0.20485053,1911.2,1910.4,0.06095]
[1680701662868,0.02172053,1911.2,1910.7,0.01831]
[1680701663028,0.02172053,1911.2,1910.7,0.006]
[1680701663227,0.20485053,1911.2,1910.7,0.006]
[1680701663869,0.57111053,1911.2,1910.7,0.006]
[1680701664092,0.57111053,1911.2,1910.6,0.006]
[1680701664592,3.20539308,1911.2,1910.5,0.006]
[1680701665202,0.18315,1911.0,1910.5,0.006]
[1680701665364,2.81743255,1911.0,1910.5,0.006]
[1680701665551,0.18514,1911.1,1910.5,0.006]
[1680701665753,0.18315,1911.0,1910.5,0.006]
[1680701665954,2.81743255,1911.1,1910.5,0.02431]
[1680701666154,2.81743255,1911.1,1910.5,0.006]
[1680701666354,2.81743255,1911.1,1910.5,0.02431]
[1680701666784,2.63428255,1911.1,1910.6,0.01831]
[1680701667369,2.81742255,1911.1,1910.5,0.02431]
[1680701667994,2.63428255,1911.1,1910.6,0.01831]
[1680701668200,2.81742255,1911.1,1910.5,0.02431]
[1680701668454,2.63428255,1911.1,1910.6,0.01831]
[1680701668705,0.36624,1911.3,1910.6,0.01831]
[1680701668706,0.002,1911.3,1910.7,0.03663]
[1680701668868,0.18309,1911.6,1911.0,0.01831]
[1680701669073,0.18309,1911.6,1910.9,0.03663]
[1680701669074,0.18309,1911.6,1910.9,0.01831]
[1680701669279,0.18309,1911.6,1910.9,0.02431]
[1680701669488,0.18309,1911.6,1911.2,0.69]
[1680701669783,1.28164,1911.6,1911.2,0.69]
[1680701670177,0.54927,1911.6,1911.2,0.69]
[1680701670377,3.73229,1911.8,1911.2,0.69]
[1680701670575,3.18352255,1911.7,1911.2,0.69]
[1680701670909,0.002,1911.8,1911.3,8.11328255]
[1680701671066,0.36602,1912.5,1911.6,0.05491]
[1680701671266,2.81730255,1912.4,1911.6,0.05491]
[1680701671467,2.63428255,1912.4,1911.6,0.05491]
[1680701671687,3.56062787,1912.6,1912.0,0.706]
[1680701671892,0.47599001,1912.6,1912.0,0.706]
[1680701672105,0.18303,1912.2,1912.0,0.706]
[1680701672393,0.73203,1912.5,1912.0,0.706]
[1680701672732,0.11000001,1912.6,1912.0,0.76091]
[1680701672934,0.11000001,1912.6,1912.0,1.384901]
[1680701673284,0.11000001,1912.6,1912.0,1.354291]
[1680701673523,0.02172053,1912.5,1912.0,0.706]
[1680701674186,0.20473053,1912.5,1912.0,0.706]
[1680701674386,0.02172053,1912.5,1912.0,0.706]
[1680701674714,0.11000001,1912.6,1912.0,0.76091]
[1680701674886,0.11000001,1912.6,1912.1,0.076091]
[1680701675088,0.13172054,1912.6,1912.1,0.0183]
[1680701675334,0.18301,1912.5,1912.0,0.706]
[1680701675914,0.49771054,1912.6,1912.0,0.706]
[1680701676226,0.13172054,1912.6,1912.0,0.706]
[1680701676729,0.36603,1912.4,1912.0,0.706]
[1680701676911,0.54908,1912.3,1912.0,0.706]
[1680701677238,0.54908,1912.3,1911.6,0.006]
[1680701677239,2.63428255,1912.2,1911.6,0.006]
[1680701677437,0.54913,1912.1,1911.5,0.006]
[1680701678303,2.63428255,1912.0,1911.4,0.006]
[1680701678517,2.81733255,1912.0,1911.4,0.02431]
[1680701678714,2.81733255,1912.0,1911.4,0.006]
[1680701678920,3.18343255,1912.0,1911.4,0.006]
[1680701679124,2.81733255,1912.0,1911.4,0.01831]
[1680701679330,2.81733255,1912.0,1911.3,0.006]
[1680701679638,3.18343255,1912.0,1911.3,0.02431]
[1680701679795,3.18343255,1912.0,1911.3,0.006]
[1680701680001,2.63428255,1912.0,1911.3,0.04262]
[1680701680210,0.002,1912.2,1911.3,0.006]
[1680701680435,3.0,1912.3,1911.6,0.0183]
[1680701680436,2.63428255,1912.1,1911.6,0.0183]
[1680701680596,3.0,1912.2,1911.6,0.05491]
[1680701680795,3.18303,1912.2,1911.5,0.006]
[1680701680997,3.02172053,1912.2,1911.6,0.0183]
[1680701681494,3.20475053,1912.2,1911.6,0.05491]
[1680701681700,3.02172053,1912.2,1911.6,0.0183]
[1680701682044,0.002,1912.3,1912.2,0.00318621]
[1680701682248,0.02172053,1912.5,1912.2,0.00318621]
[1680701682397,0.18301,1912.4,1912.2,0.00318621]
[1680701682594,0.18302,1912.3,1912.2,0.00318621]
[1680701682869,0.54907,1912.3,1912.2,0.00318621]
[1680701683214,0.38774053,1912.5,1912.2,0.00318621]
[1680701683427,0.18301,1912.4,1912.2,0.00318621]
[1680701683732,0.02172053,1912.5,1912.2,0.00318621]
[1680701683937,0.18302,1912.3,1912.2,0.00318621]
[1680701684319,4.78200093,1911.8,1911.2,0.006]
[1680701684633,10.84242379,1911.6,1910.0,0.03664]
[1680701684815,10.84242379,1911.6,1909.9,0.52974455]
[1680701684816,10.84442379,1911.6,1910.1,5.479]
[1680701684997,6.76077,1911.4,1910.2,0.5479]
[1680701685201,6.76077,1911.4,1910.2,0.5539]
[1680701685202,6.76277,1911.4,1910.2,0.5539]